[Event "*** Qualifier 4: Titled Tuesday 3|2 Blitz"]
[Site "Chess.com"]
[Date "2017.04.25"]
[Round "7"]
[White "stepanosinovsky"]
[Black "SerGo055"]
[Result "0-1"]
[WhiteElo "2253"]
[BlackElo "2332"]
[TimeControl "180+2"]
[EndTime "14:32:09 PDT"]
[Termination "SerGo055 won by resignation"]

1. e4 {[%clk 0:03:02]} 1... d5 {[%clk 0:02:58.4]} 2. exd5 {[%clk 0:03:01.5]}
2... Nf6 {[%clk 0:02:59.2]} 3. Bb5+ {[%clk 0:03:00.9]} 3... Bd7 {[%clk
0:02:59.9]} 4. Bc4 {[%clk 0:03:01.3]} 4... Bg4 {[%clk 0:03:00.5]} 5. f3 {[%clk
0:03:02.4]} 5... Bf5 {[%clk 0:03:01.5]} 6. g4 {[%clk 0:03:02.1]} 6... Bc8 {[%clk
0:03:00.1]} 7. Nc3 {[%clk 0:02:59.7]} 7... Nbd7 {[%clk 0:03:00.4]} 8. g5 {[%clk
0:02:52.7]} 8... Nh5 {[%clk 0:02:51.3]} 9. d4 {[%clk 0:02:22.3]} 9... a6 {[%clk
0:02:49.9]} 10. f4 {[%clk 0:02:19.1]} 10... g6 {[%clk 0:02:48.4]} 11. a4 {[%clk
0:02:08.2]} 11... Nb6 {[%clk 0:02:25.9]} 12. Bb3 {[%clk 0:02:06.3]} 12... Bf5
{[%clk 0:02:16.1]} 13. Qf3 {[%clk 0:02:00.4]} 13... Bg7 {[%clk 0:02:13.8]} 14.
Nge2 {[%clk 0:02:00.3]} 14... O-O {[%clk 0:02:13.7]} 15. Nd1 {[%clk 0:01:56]}
15... Nc8 {[%clk 0:01:34.5]} 16. Ne3 {[%clk 0:01:50.9]} 16... Nd6 {[%clk
0:01:35.3]} 17. Nxf5 {[%clk 0:01:50.9]} 17... Nxf5 {[%clk 0:01:35.8]} 18. c3
{[%clk 0:01:51.3]} 18... Qd6 {[%clk 0:01:18.5]} 19. Ng3 {[%clk 0:01:39.6]} 19...
Nh4 {[%clk 0:01:00.2]} 20. Qf2 {[%clk 0:01:15.4]} 20... Nxf4 {[%clk 0:00:54.5]}
21. Bxf4 {[%clk 0:00:20.5]} 21... Qxf4 {[%clk 0:00:54.8]} 22. O-O {[%clk
0:00:21]} 22... Qxg5 {[%clk 0:00:52.6]} 23. Kh1 {[%clk 0:00:20]} 23... Rad8
{[%clk 0:00:48.1]} 24. Rae1 {[%clk 0:00:19.9]} 24... Rd6 {[%clk 0:00:48.5]} 25.
Ne4 {[%clk 0:00:20.7]} 25... Qh5 {[%clk 0:00:44.5]} 26. Bd1 {[%clk 0:00:20.9]}
26... Qh6 {[%clk 0:00:43.1]} 27. c4 {[%clk 0:00:20.5]} 27... Rdd8 {[%clk
0:00:36.9]} 28. Ng3 {[%clk 0:00:21.6]} 28... Bf6 {[%clk 0:00:29.2]} 29. a5
{[%clk 0:00:21.9]} 29... c6 {[%clk 0:00:24]} 30. Ne4 {[%clk 0:00:14.4]} 30...
cxd5 {[%clk 0:00:17.2]} 31. Nxf6+ {[%clk 0:00:15.2]} 31... exf6 {[%clk
0:00:18.4]} 32. Qxf6 {[%clk 0:00:15.9]} 32... dxc4 {[%clk 0:00:19.2]} 33. Re7
{[%clk 0:00:16.2]} 33... Qg7 {[%clk 0:00:18.3]} 34. Qxh4 {[%clk 0:00:16.6]}
34... Rxd4 {[%clk 0:00:19.1]} 35. Qf2 {[%clk 0:00:17.5]} 35... Rd5 {[%clk
0:00:11.5]} 36. Bf3 {[%clk 0:00:17.2]} 36... Rxa5 {[%clk 0:00:11.5]} 37. Qd2
{[%clk 0:00:16.3]} 37... Rf5 {[%clk 0:00:10.2]} 38. Bg2 {[%clk 0:00:15.6]} 38...
Rxf1+ {[%clk 0:00:07.5]} 39. Bxf1 {[%clk 0:00:17.5]} 39... Qf6 {[%clk
0:00:08.5]} 40. Qe1 {[%clk 0:00:16.2]} 40... Qxb2 {[%clk 0:00:05.5]} 41. Bxc4
{[%clk 0:00:16.2]} 41... Qf6 {[%clk 0:00:06.7]} 42. Rxb7 {[%clk 0:00:15.8]}
42... Qc6+ {[%clk 0:00:07.6]} 43. Kg1 {[%clk 0:00:15.8]} 43... Qxb7 {[%clk
0:00:08.8]} 0-1

[Event "*** Qualifier 4: Titled Tuesday 3|2 Blitz"]
[Site "Chess.com"]
[Date "2017.04.25"]
[Round "7"]
[White "MorpheusPro"]
[Black "indfraeng"]
[Result "0-1"]
[WhiteElo "2036"]
[BlackElo "1802"]
[TimeControl "180+2"]
[EndTime "14:32:22 PDT"]
[Termination "indfraeng won on time"]

1. e4 {[%clk 0:02:57.9]} 1... c6 {[%clk 0:02:57.7]} 2. d4 {[%clk 0:02:57.6]}
2... d5 {[%clk 0:02:58.4]} 3. Nc3 {[%clk 0:02:57.9]} 3... dxe4 {[%clk
0:02:59.1]} 4. Nxe4 {[%clk 0:02:57.9]} 4... Nd7 {[%clk 0:03:00.6]} 5. Nf3 {[%clk
0:02:58.3]} 5... Ngf6 {[%clk 0:03:00.8]} 6. Ng3 {[%clk 0:02:58.7]} 6... e6
{[%clk 0:02:58.4]} 7. Bd3 {[%clk 0:02:59]} 7... Bd6 {[%clk 0:02:59.5]} 8. Bd2
{[%clk 0:02:55.9]} 8... O-O {[%clk 0:03:00.1]} 9. Qe2 {[%clk 0:02:55.7]} 9... b6
{[%clk 0:03:00.5]} 10. O-O-O {[%clk 0:02:55.4]} 10... Bb7 {[%clk 0:03:01.3]} 11.
Bg5 {[%clk 0:02:51]} 11... Qc7 {[%clk 0:03:00.8]} 12. Ne4 {[%clk 0:02:48.6]}
12... Nxe4 {[%clk 0:02:58.7]} 13. Qxe4 {[%clk 0:02:48.5]} 13... g6 {[%clk
0:02:48.5]} 14. Qh4 {[%clk 0:02:43.6]} 14... c5 {[%clk 0:02:44.5]} 15. Bb5
{[%clk 0:02:17.4]} 15... Bc6 {[%clk 0:02:21.8]} 16. dxc5 {[%clk 0:01:44]} 16...
bxc5 {[%clk 0:02:08.7]} 17. Bc4 {[%clk 0:01:19.8]} 17... Ne5 {[%clk 0:01:58.5]}
18. Bf6 {[%clk 0:00:28.8]} 18... Nxc4 {[%clk 0:01:46.2]} 19. Qxc4 {[%clk
0:00:21.5]} 19... Bxf3 {[%clk 0:01:45]} 20. gxf3 {[%clk 0:00:21.1]} 20... Be5
{[%clk 0:01:39.6]} 21. Qh4 {[%clk 0:00:15.4]} 21... Bxf6 {[%clk 0:01:35.4]} 22.
Qxf6 {[%clk 0:00:15.7]} 22... Rad8 {[%clk 0:01:35.2]} 23. h4 {[%clk 0:00:15.2]}
23... h5 {[%clk 0:01:29.6]} 24. Rhg1 {[%clk 0:00:11.1]} 24... Kh7 {[%clk
0:01:27.8]} 25. Rxd8 {[%clk 0:00:04]} 25... Qxd8 {[%clk 0:01:25.1]} 26. Qf4
{[%clk 0:00:03.7]} 26... Qd5 {[%clk 0:01:09.5]} 27. Rd1 {[%clk 0:00:04.4]} 27...
Qc6 {[%clk 0:00:59.6]} 28. Rd6 {[%clk 0:00:04.9]} 28... Qc7 {[%clk 0:00:59.5]}
29. Qd2 {[%clk 0:00:04.7]} 29... Qe7 {[%clk 0:00:43.3]} 30. Qf4 {[%clk
0:00:03.9]} 30... e5 {[%clk 0:00:41.8]} 31. Qd2 {[%clk 0:00:04.5]} 31... Qxh4
{[%clk 0:00:41.8]} 32. b3 {[%clk 0:00:05.3]} 32... Qh1+ {[%clk 0:00:37.1]} 33.
Kb2 {[%clk 0:00:05.9]} 33... Qxf3 {[%clk 0:00:37.5]} 34. Rd5 {[%clk 0:00:06]}
34... Qf6 {[%clk 0:00:28.3]} 35. Rxc5 {[%clk 0:00:06.9]} 35... e4+ {[%clk
0:00:29.1]} 36. Kb1 {[%clk 0:00:07.3]} 36... Rd8 {[%clk 0:00:29.8]} 37. Rd5
{[%clk 0:00:07.3]} 37... Rxd5 {[%clk 0:00:23.2]} 38. Qxd5 {[%clk 0:00:08.1]}
38... Qf3 {[%clk 0:00:23.1]} 39. Qd2 {[%clk 0:00:07.7]} 39... h4 {[%clk
0:00:23.4]} 40. Qd7 {[%clk 0:00:04.5]} 40... h3 {[%clk 0:00:22.5]} 41. Qd6
{[%clk 0:00:05.1]} 41... Qxf2 {[%clk 0:00:21]} 42. Kb2 {[%clk 0:00:05.2]} 42...
h2 {[%clk 0:00:22]} 0-1

[Event "*** Qualifier 4: Titled Tuesday 3|2 Blitz"]
[Site "Chess.com"]
[Date "2017.04.25"]
[Round "7"]
[White "djano"]
[Black "NMJeevanK"]
[Result "0-1"]
[WhiteElo "2419"]
[BlackElo "2410"]
[TimeControl "180+2"]
[EndTime "14:32:27 PDT"]
[Termination "NMJeevanK won by resignation"]

1. d4 {[%clk 0:03:02]} 1... Nf6 {[%clk 0:03:01.2]} 2. Bf4 {[%clk 0:03:02.4]}
2... e6 {[%clk 0:03:03.1]} 3. e3 {[%clk 0:03:02.7]} 3... d5 {[%clk 0:03:04.8]}
4. Nd2 {[%clk 0:03:03.3]} 4... c5 {[%clk 0:03:06.5]} 5. c3 {[%clk 0:03:03.1]}
5... Nc6 {[%clk 0:03:07.9]} 6. Ngf3 {[%clk 0:03:03.6]} 6... Bd6 {[%clk
0:03:07.6]} 7. Bg3 {[%clk 0:03:03.5]} 7... O-O {[%clk 0:03:08.3]} 8. Bd3 {[%clk
0:03:04.3]} 8... Re8 {[%clk 0:03:09.4]} 9. Ne5 {[%clk 0:03:05.1]} 9... Bxe5
{[%clk 0:03:09.4]} 10. dxe5 {[%clk 0:03:05.8]} 10... Nd7 {[%clk 0:03:09.4]} 11.
Nf3 {[%clk 0:02:46.4]} 11... f5 {[%clk 0:03:06.2]} 12. exf6 {[%clk 0:02:46.1]}
12... Qxf6 {[%clk 0:02:59]} 13. O-O {[%clk 0:02:42.8]} 13... e5 {[%clk
0:02:57.7]} 14. e4 {[%clk 0:02:42.6]} 14... d4 {[%clk 0:02:53.3]} 15. cxd4
{[%clk 0:02:43.9]} 15... cxd4 {[%clk 0:02:42.4]} 16. Rc1 {[%clk 0:02:31.2]}
16... Nf8 {[%clk 0:02:37.6]} 17. Qb3+ {[%clk 0:02:11.4]} 17... Kh8 {[%clk
0:02:33.6]} 18. Rc2 {[%clk 0:01:46.8]} 18... a5 {[%clk 0:02:22.6]} 19. Rfc1
{[%clk 0:01:30.4]} 19... Bg4 {[%clk 0:02:12.8]} 20. Qxb7 {[%clk 0:01:26.4]}
20... Nb4 {[%clk 0:02:11.9]} 21. Nxe5 {[%clk 0:01:11.2]} 21... Nxc2 {[%clk
0:01:50.2]} 22. Rxc2 {[%clk 0:00:52.5]} 22... Be6 {[%clk 0:01:43.5]} 23. Qb6
{[%clk 0:00:37.3]} 23... a4 {[%clk 0:01:17.9]} 24. Qxd4 {[%clk 0:00:35]} 24...
Red8 {[%clk 0:01:04.6]} 25. Qe3 {[%clk 0:00:32.1]} 25... Bxa2 {[%clk 0:01:03.2]}
26. Rc6 {[%clk 0:00:29.3]} 26... Ne6 {[%clk 0:00:52.5]} 27. h3 {[%clk
0:00:28.3]} 27... Rac8 {[%clk 0:00:48.6]} 28. Qb6 {[%clk 0:00:26.4]} 28... Rxc6
{[%clk 0:00:46.3]} 29. Nxc6 {[%clk 0:00:28.3]} 29... Rxd3 {[%clk 0:00:42.3]} 30.
Be5 {[%clk 0:00:29.4]} 30... Qf8 {[%clk 0:00:34.3]} 31. Qa6 {[%clk 0:00:29]}
31... Rd1+ {[%clk 0:00:33.9]} 32. Kh2 {[%clk 0:00:30.4]} 32... Qxf2 {[%clk
0:00:30.6]} 33. Qa8+ {[%clk 0:00:29.2]} 33... Qf8 {[%clk 0:00:24.5]} 34. Qxa4
{[%clk 0:00:29.6]} 34... Rc1 {[%clk 0:00:18.4]} 35. Nb4 {[%clk 0:00:18.2]} 35...
Bc4 {[%clk 0:00:17.5]} 36. b3 {[%clk 0:00:19.1]} 36... Bf1 {[%clk 0:00:17.8]}
37. Nd5 {[%clk 0:00:18.3]} 37... h6 {[%clk 0:00:16.1]} 38. Qa2 {[%clk
0:00:18.3]} 38... Bd3 {[%clk 0:00:15.9]} 39. Qd2 {[%clk 0:00:18.9]} 39... Bxe4
{[%clk 0:00:15.9]} 40. Qxc1 {[%clk 0:00:19.9]} 40... Bxd5 {[%clk 0:00:16.4]} 41.
Qxh6+ {[%clk 0:00:19.5]} 41... Kg8 {[%clk 0:00:18]} 42. Qd2 {[%clk 0:00:20.6]}
42... Qa8 {[%clk 0:00:17.7]} 43. b4 {[%clk 0:00:20.3]} 43... Qb7 {[%clk
0:00:18.7]} 44. Bc3 {[%clk 0:00:19.8]} 44... Qb5 {[%clk 0:00:18.9]} 45. Be5
{[%clk 0:00:20.4]} 45... Kf7 {[%clk 0:00:20.2]} 46. Qf2+ {[%clk 0:00:21.2]}
46... Kg6 {[%clk 0:00:20.4]} 47. Qg3+ {[%clk 0:00:21.9]} 47... Kf7 {[%clk
0:00:21]} 48. Qf2+ {[%clk 0:00:23]} 48... Ke7 {[%clk 0:00:22.4]} 49. Qa7+ {[%clk
0:00:23.5]} 49... Bb7 {[%clk 0:00:20.4]} 50. Bc3 {[%clk 0:00:21.2]} 50... Qc6
{[%clk 0:00:21]} 51. Qf2 {[%clk 0:00:19.4]} 51... Qxc3 {[%clk 0:00:21.5]} 52.
Qh4+ {[%clk 0:00:19.8]} 52... Qf6 {[%clk 0:00:20.7]} 53. Qh8 {[%clk 0:00:15.6]}
53... Qe5+ {[%clk 0:00:21.5]} 54. Kg1 {[%clk 0:00:16]} 54... Qe3+ {[%clk
0:00:22.2]} 55. Kf1 {[%clk 0:00:16.6]} 55... Ba6+ {[%clk 0:00:21.7]} 0-1

[Event "*** Qualifier 4: Titled Tuesday 3|2 Blitz"]
[Site "Chess.com"]
[Date "2017.04.25"]
[Round "7"]
[White "LonesomeGeorge1"]
[Black "Shivagami"]
[Result "0-1"]
[WhiteElo "2208"]
[BlackElo "1966"]
[TimeControl "180+2"]
[EndTime "14:32:33 PDT"]
[Termination "Shivagami won by resignation"]

1. d4 {[%clk 0:03:02]} 1... Nc6 {[%clk 0:02:59.4]} 2. d5 {[%clk 0:02:52.4]} 2...
Ne5 {[%clk 0:02:58.8]} 3. e4 {[%clk 0:02:46.7]} 3... e6 {[%clk 0:02:53.4]} 4.
Nc3 {[%clk 0:02:47]} 4... Nf6 {[%clk 0:02:50.6]} 5. Nf3 {[%clk 0:02:31]} 5...
Ng6 {[%clk 0:02:45.6]} 6. dxe6 {[%clk 0:02:17]} 6... fxe6 {[%clk 0:02:37.9]} 7.
e5 {[%clk 0:02:09.2]} 7... Ng4 {[%clk 0:02:34.9]} 8. Qd4 {[%clk 0:01:41.2]} 8...
h5 {[%clk 0:02:30.5]} 9. Bd3 {[%clk 0:01:40.6]} 9... Ne7 {[%clk 0:02:21.3]} 10.
Bg5 {[%clk 0:01:39.7]} 10... Kf7 {[%clk 0:02:11.4]} 11. Qf4+ {[%clk 0:01:35.9]}
11... Kg8 {[%clk 0:02:06.3]} 12. Ne4 {[%clk 0:01:21.6]} 12... Ng6 {[%clk
0:01:53.5]} 13. Nf6+ {[%clk 0:00:55.2]} 13... gxf6 {[%clk 0:01:49]} 14. Bxg6
{[%clk 0:00:55.9]} 14... Kg7 {[%clk 0:01:35.8]} 15. exf6+ {[%clk 0:00:38.7]}
15... Kxg6 {[%clk 0:01:30.2]} 16. f7 {[%clk 0:00:34.2]} 16... Be7 {[%clk
0:01:27.1]} 17. Nh4+ {[%clk 0:00:21.6]} 17... Kg7 {[%clk 0:01:19]} 18. Qe4
{[%clk 0:00:12.5]} 18... Bxg5 {[%clk 0:01:00.2]} 19. Qg6+ {[%clk 0:00:13.5]}
19... Kf8 {[%clk 0:01:01]} 20. Nf3 {[%clk 0:00:13.5]} 20... Bf6 {[%clk
0:00:43.8]} 21. h3 {[%clk 0:00:12.6]} 21... Ne5 {[%clk 0:00:38.2]} 22. Nxe5
{[%clk 0:00:12.8]} 22... Bxe5 {[%clk 0:00:40.1]} 23. O-O-O {[%clk 0:00:14.5]}
23... Qf6 {[%clk 0:00:38.9]} 24. Qe4 {[%clk 0:00:14.1]} 24... d5 {[%clk
0:00:36.8]} 25. Qb4+ {[%clk 0:00:13.5]} 25... Bd6 {[%clk 0:00:36.3]} 26. Qb3
{[%clk 0:00:13.8]} 26... Kxf7 {[%clk 0:00:32.7]} 27. Kb1 {[%clk 0:00:14.7]}
27... b6 {[%clk 0:00:30.8]} 28. f4 {[%clk 0:00:15.9]} 28... Bb7 {[%clk
0:00:29.2]} 29. Rhf1 {[%clk 0:00:16.9]} 29... c5 {[%clk 0:00:27]} 30. g4 {[%clk
0:00:16.5]} 30... hxg4 {[%clk 0:00:26.7]} 31. hxg4 {[%clk 0:00:18.4]} 31... c4
{[%clk 0:00:26.1]} 32. Qa4 {[%clk 0:00:18.9]} 32... Qe7 {[%clk 0:00:23.4]} 33.
f5 {[%clk 0:00:18.4]} 33... e5 {[%clk 0:00:23.4]} 34. f6 {[%clk 0:00:18.2]}
34... Qc7 {[%clk 0:00:23]} 35. g5 {[%clk 0:00:18.8]} 35... Rhg8 {[%clk
0:00:19.6]} 36. Rg1 {[%clk 0:00:16.1]} 36... Bc6 {[%clk 0:00:19.7]} 37. Qa6
{[%clk 0:00:15.3]} 37... Qb7 {[%clk 0:00:18.1]} 38. Qxb7+ {[%clk 0:00:13.6]}
38... Bxb7 {[%clk 0:00:20]} 39. c3 {[%clk 0:00:15.5]} 39... Rg6 {[%clk
0:00:20.4]} 40. Rd2 {[%clk 0:00:15]} 40... Rag8 {[%clk 0:00:21]} 41. Rdg2 {[%clk
0:00:15.9]} 41... d4 {[%clk 0:00:22]} 42. Rg4 {[%clk 0:00:15.6]} 42... Bf3
{[%clk 0:00:21]} 43. Rh4 {[%clk 0:00:16.5]} 43... Rxg5 {[%clk 0:00:19.7]} 44.
Rh7+ {[%clk 0:00:17.6]} 44... Kxf6 {[%clk 0:00:20.6]} 45. Rh6+ {[%clk
0:00:17.9]} 45... R8g6 {[%clk 0:00:20.9]} 46. Rxg6+ {[%clk 0:00:18.1]} 46...
Rxg6 {[%clk 0:00:21.8]} 47. Rf1 {[%clk 0:00:20]} 47... e4 {[%clk 0:00:23]} 48.
cxd4 {[%clk 0:00:20.7]} 48... Ke6 {[%clk 0:00:23.6]} 49. Kc2 {[%clk 0:00:21.5]}
49... Kd5 {[%clk 0:00:24.1]} 50. Kc3 {[%clk 0:00:22.7]} 50... Rg3 {[%clk
0:00:23.9]} 51. Rg1 {[%clk 0:00:22.4]} 51... Rxg1 {[%clk 0:00:23]} 0-1

[Event "*** Qualifier 4: Titled Tuesday 3|2 Blitz"]
[Site "Chess.com"]
[Date "2017.04.25"]
[Round "7"]
[White "LyonBeast"]
[Black "Cayse"]
[Result "1-0"]
[WhiteElo "2812"]
[BlackElo "2655"]
[TimeControl "180+2"]
[EndTime "14:32:39 PDT"]
[Termination "LyonBeast won by resignation"]

1. e4 {[%clk 0:03:02]} 1... e5 {[%clk 0:02:59.8]} 2. Nf3 {[%clk 0:03:00.9]} 2...
Nc6 {[%clk 0:03:00.6]} 3. Bb5 {[%clk 0:03:02.1]} 3... a6 {[%clk 0:03:01.3]} 4.
Ba4 {[%clk 0:03:03.6]} 4... Nf6 {[%clk 0:03:01.9]} 5. O-O {[%clk 0:03:05.3]}
5... Be7 {[%clk 0:03:02.7]} 6. Re1 {[%clk 0:03:06.5]} 6... b5 {[%clk 0:03:03.1]}
7. Bb3 {[%clk 0:03:08.2]} 7... d6 {[%clk 0:03:04.2]} 8. c3 {[%clk 0:03:09]} 8...
O-O {[%clk 0:03:04.8]} 9. h3 {[%clk 0:03:10.6]} 9... Bb7 {[%clk 0:03:05.5]} 10.
d4 {[%clk 0:03:09.4]} 10... Nd7 {[%clk 0:03:05.7]} 11. a4 {[%clk 0:03:01.5]}
11... Na5 {[%clk 0:03:03.3]} 12. Bc2 {[%clk 0:02:58.8]} 12... c5 {[%clk
0:02:56.8]} 13. d5 {[%clk 0:02:47]} 13... Qc7 {[%clk 0:02:22.7]} 14. b3 {[%clk
0:02:37.8]} 14... c4 {[%clk 0:02:01.2]} 15. b4 {[%clk 0:02:36.2]} 15... Nb3
{[%clk 0:02:02.7]} 16. Bxb3 {[%clk 0:02:37.2]} 16... cxb3 {[%clk 0:02:04.2]} 17.
Qxb3 {[%clk 0:02:32.9]} 17... f5 {[%clk 0:02:04.8]} 18. Bg5 {[%clk 0:02:16.2]}
18... bxa4 {[%clk 0:01:43.5]} 19. Rxa4 {[%clk 0:02:13.1]} 19... Nb6 {[%clk
0:01:43.1]} 20. Ra5 {[%clk 0:02:13.4]} 20... fxe4 {[%clk 0:01:39.5]} 21. Bxe7
{[%clk 0:02:05.7]} 21... exf3 {[%clk 0:01:20.4]} 22. Bxf8 {[%clk 0:02:04.1]}
22... Rxf8 {[%clk 0:01:18.9]} 23. Nd2 {[%clk 0:02:03.6]} 23... fxg2 {[%clk
0:01:19]} 24. c4 {[%clk 0:02:02.4]} 24... Qc8 {[%clk 0:01:05.9]} 25. Kxg2 {[%clk
0:00:53.2]} 25... Rf4 {[%clk 0:00:43.5]} 26. Qd3 {[%clk 0:00:41.6]} 26... Rd4
{[%clk 0:00:41.6]} 27. Qe2 {[%clk 0:00:40.2]} 27... Nxc4 {[%clk 0:00:39.8]} 28.
Nxc4 {[%clk 0:00:39]} 28... Rxc4 {[%clk 0:00:41.3]} 29. Kh2 {[%clk 0:00:33.3]}
29... Rxb4 {[%clk 0:00:36.5]} 30. Rg1 {[%clk 0:00:33.4]} 30... Rf4 {[%clk
0:00:35.8]} 31. Rg2 {[%clk 0:00:27.7]} 31... Qf8 {[%clk 0:00:31.3]} 32. Qb2
{[%clk 0:00:23.5]} 32... Qf7 {[%clk 0:00:30.5]} 33. Qb6 {[%clk 0:00:23.3]} 33...
Qe7 {[%clk 0:00:18.8]} 34. Qa7 {[%clk 0:00:19.3]} 34... Kf7 {[%clk 0:00:13.2]}
35. Qb8 {[%clk 0:00:17]} 35... h6 {[%clk 0:00:09.3]} 36. Qh8 {[%clk 0:00:15.3]}
36... Qf6 {[%clk 0:00:10.1]} 37. Qb8 {[%clk 0:00:14.6]} 37... Qe7 {[%clk
0:00:11]} 38. Ra3 {[%clk 0:00:12]} 38... Bxd5 {[%clk 0:00:10.6]} 39. Rxa6 {[%clk
0:00:13]} 39... Bxg2 {[%clk 0:00:06]} 40. Ra7 {[%clk 0:00:14.4]} 40... Bd5
{[%clk 0:00:05.3]} 41. Rxe7+ {[%clk 0:00:15.1]} 41... Kxe7 {[%clk 0:00:07.2]}
42. Qc7+ {[%clk 0:00:16.2]} 42... Kf6 {[%clk 0:00:08.6]} 43. Qd8+ {[%clk
0:00:10]} 43... Kf7 {[%clk 0:00:08.5]} 44. Qxd6 {[%clk 0:00:10.6]} 44... Rxf2+
{[%clk 0:00:09.5]} 45. Kg1 {[%clk 0:00:11.7]} 45... Rg2+ {[%clk 0:00:10.7]} 46.
Kf1 {[%clk 0:00:13.4]} 46... Rd2 {[%clk 0:00:12]} 47. Qxe5 {[%clk 0:00:13.8]}
47... Kg8 {[%clk 0:00:12.6]} 48. h4 {[%clk 0:00:13.7]} 48... Bc4+ {[%clk
0:00:13]} 49. Kg1 {[%clk 0:00:15.1]} 49... Rd1+ {[%clk 0:00:13.8]} 50. Kf2
{[%clk 0:00:15.9]} 50... Rd7 {[%clk 0:00:14.8]} 51. Qe8+ {[%clk 0:00:16.4]}
51... Kh7 {[%clk 0:00:15.6]} 52. Qxd7 {[%clk 0:00:18.3]} 52... Bg8 {[%clk
0:00:06.8]} 53. h5 {[%clk 0:00:18.8]} 1-0

[Event "*** Qualifier 4: Titled Tuesday 3|2 Blitz"]
[Site "Chess.com"]
[Date "2017.04.25"]
[Round "7"]
[White "Ilja_Semjonovs"]
[Black "silverback96"]
[Result "1-0"]
[WhiteElo "2258"]
[BlackElo "2064"]
[TimeControl "180+2"]
[EndTime "14:32:41 PDT"]
[Termination "Ilja_Semjonovs won by resignation"]

1. d4 {[%clk 0:02:57.7]} 1... Nf6 {[%clk 0:03:00.7]} 2. Nf3 {[%clk 0:02:58.6]}
2... c5 {[%clk 0:03:01.9]} 3. c3 {[%clk 0:02:59.5]} 3... g6 {[%clk 0:03:02.7]}
4. Bg5 {[%clk 0:03:00.2]} 4... Bg7 {[%clk 0:03:04.1]} 5. Bxf6 {[%clk 0:03:01.5]}
5... Bxf6 {[%clk 0:03:04.7]} 6. e3 {[%clk 0:03:03]} 6... O-O {[%clk 0:03:05.6]}
7. Bd3 {[%clk 0:03:04.1]} 7... b6 {[%clk 0:03:06.7]} 8. Nbd2 {[%clk 0:03:05.1]}
8... Bb7 {[%clk 0:03:08.3]} 9. Qe2 {[%clk 0:03:05.8]} 9... Bg7 {[%clk
0:03:08.9]} 10. O-O-O {[%clk 0:03:05.7]} 10... a5 {[%clk 0:03:06.1]} 11. h4
{[%clk 0:03:05.2]} 11... a4 {[%clk 0:03:04.8]} 12. a3 {[%clk 0:03:02.9]} 12...
Nc6 {[%clk 0:02:58.6]} 13. h5 {[%clk 0:03:02]} 13... cxd4 {[%clk 0:02:59.5]} 14.
exd4 {[%clk 0:03:02.3]} 14... Qc7 {[%clk 0:03:00.2]} 15. Kb1 {[%clk 0:02:59.1]}
15... Na5 {[%clk 0:02:46]} 16. hxg6 {[%clk 0:02:59.2]} 16... hxg6 {[%clk
0:02:47.2]} 17. Qe3 {[%clk 0:02:23.1]} 17... Bd5 {[%clk 0:02:26.1]} 18. Ng5
{[%clk 0:02:04.3]} 18... Qc6 {[%clk 0:02:01.2]} 19. Qh3 {[%clk 0:01:52.3]} 19...
Rfc8 {[%clk 0:02:00.7]} 20. Qh7+ {[%clk 0:01:33.3]} 20... Kf8 {[%clk 0:02:01.8]}
21. Rh4 {[%clk 0:01:21.4]} 21... f5 {[%clk 0:01:58.1]} 22. Rh6 {[%clk
0:01:09.6]} 22... Bg8 {[%clk 0:01:15.9]} 23. Qxg6 {[%clk 0:00:34.3]} 23... Qd5
{[%clk 0:01:16.9]} 24. Nh7+ {[%clk 0:00:27]} 24... Bxh7 {[%clk 0:01:12.3]} 25.
Rxh7 {[%clk 0:00:28.3]} 25... Qf7 {[%clk 0:01:03.6]} 26. Qxf5 {[%clk 0:00:26.2]}
26... Qxf5 {[%clk 0:01:02.8]} 27. Bxf5 {[%clk 0:00:27.2]} 27... e6 {[%clk
0:00:48.1]} 28. Bd3 {[%clk 0:00:27.3]} 28... Kf7 {[%clk 0:00:48]} 29. Rh3 {[%clk
0:00:26.4]} 29... Rg8 {[%clk 0:00:47.5]} 30. Rf3+ {[%clk 0:00:22.9]} 30... Ke7
{[%clk 0:00:48.8]} 31. g3 {[%clk 0:00:23.6]} 31... Rh8 {[%clk 0:00:49.1]} 32.
Ne4 {[%clk 0:00:23]} 32... Rh2 {[%clk 0:00:49.4]} 33. Re1 {[%clk 0:00:19.6]}
33... Nb3 {[%clk 0:00:49.4]} 34. Kc2 {[%clk 0:00:17.3]} 34... Rc8 {[%clk
0:00:48.6]} 35. Kd1 {[%clk 0:00:14.9]} 35... Bh6 {[%clk 0:00:42.4]} 36. Bc2
{[%clk 0:00:12]} 36... Na5 {[%clk 0:00:32.6]} 37. Bxa4 {[%clk 0:00:05.8]} 37...
Nc4 {[%clk 0:00:33.2]} 38. Re2 {[%clk 0:00:06.1]} 38... d5 {[%clk 0:00:32.2]}
39. Nf6 {[%clk 0:00:03.2]} 39... Kd6 {[%clk 0:00:23.2]} 40. Ng4 {[%clk
0:00:03.3]} 40... Rh1+ {[%clk 0:00:23.3]} 41. Kc2 {[%clk 0:00:04.5]} 41... Rc1+
{[%clk 0:00:22.7]} 42. Kd3 {[%clk 0:00:03.5]} 42... Rd1+ {[%clk 0:00:22.3]} 43.
Bxd1 {[%clk 0:00:03.5]} 43... Bg5 {[%clk 0:00:22.1]} 44. Bb3 {[%clk 0:00:04.4]}
44... b5 {[%clk 0:00:22.8]} 45. Bxc4 {[%clk 0:00:05.1]} 45... bxc4+ {[%clk
0:00:24.7]} 46. Kc2 {[%clk 0:00:06.4]} 46... Rh8 {[%clk 0:00:26.3]} 47. Ne5
{[%clk 0:00:07.2]} 47... Rh1 {[%clk 0:00:26.6]} 48. Nf7+ {[%clk 0:00:08.3]}
48... Ke7 {[%clk 0:00:28.1]} 49. Nxg5 {[%clk 0:00:09.9]} 49... Kd6 {[%clk
0:00:29.6]} 50. Rxe6+ {[%clk 0:00:10.9]} 50... Kc7 {[%clk 0:00:29.8]} 51. Rf7+
{[%clk 0:00:11.9]} 51... Kd8 {[%clk 0:00:31.6]} 52. Rg6 {[%clk 0:00:12.9]} 52...
Rh8 {[%clk 0:00:31.4]} 53. Rd6+ {[%clk 0:00:13.2]} 53... Kc8 {[%clk 0:00:32.6]}
54. Rxd5 {[%clk 0:00:14.3]} 54... Re8 {[%clk 0:00:33.2]} 55. Rdf5 {[%clk
0:00:15.2]} 55... Kb8 {[%clk 0:00:35.1]} 56. Rf8 {[%clk 0:00:16]} 56... Ka8
{[%clk 0:00:37]} 57. Rxe8+ {[%clk 0:00:16.6]} 57... Ka7 {[%clk 0:00:38.9]} 58.
Rf6 {[%clk 0:00:18]} 58... Kb7 {[%clk 0:00:39.9]} 59. Re7+ {[%clk 0:00:19.5]}
1-0